bitfinex/quotes_SOLUSD_20220210
["timestamp","ask_amount","ask_price","bid_price","bid_amount"]
[1644470367846,1.30941145,111.5,111.44,68.66090413]
[1644470368244,1.30941145,111.5,111.45,6.0]
[1644470368449,1.27343592,111.5,111.46,13.4582]
[1644470369546,1.27343592,111.5,111.46,13.7082]
[1644470369748,24.27791145,111.51,111.46,13.7082]
[1644470378964,24.27791145,111.51,111.45,6.0]
[1644470378965,24.27791145,111.51,111.45,13.4603]
[1644470379164,24.27791145,111.51,111.43,12.46]
[1644470379464,1.30941145,111.5,111.43,12.46]
[1644470379865,1.27343592,111.49,111.43,12.46]
[1644470380065,24.15808192,111.49,111.43,25.9221]
[1644470380265,46.86008192,111.49,111.43,13.7121]
[1644470381868,60.32218192,111.49,111.43,13.4621]
[1644470384269,1.27343592,111.48,111.43,13.4621]
[1644470385472,60.32218192,111.49,111.43,13.4621]
[1644470386372,1.27343592,111.48,111.43,13.4621]
[1644470389072,1.27343592,111.48,111.42,24.3656]
[1644470389275,14.77271145,111.48,111.42,13.4638]
[1644470389471,14.77271145,111.48,111.4,37.2738]
[1644470389672,22.5798,111.47,111.4,37.2738]
[1644470390074,22.5798,111.47,111.41,45.25924416]
[1644470390374,22.5798,111.47,111.41,58.72364416]
[1644470390678,22.5798,111.47,111.41,58.97364416]
[1644470392995,1.30941145,111.48,111.41,58.97364416]
[1644470393195,24.26381145,111.48,111.41,58.97364416]
[1644470394794,24.26381145,111.48,111.43,13.4615]
[1644470394995,24.22783592,111.48,111.43,13.4615]
[1644470395994,1.27343592,111.48,111.43,13.4615]
[1644470396195,1.30941145,111.5,111.45,59.65217453]
[1644470396397,1.27343592,111.5,111.45,59.65217453]
[1644470396594,26.10941145,111.51,111.45,59.65217453]
[1644470396795,26.10941145,111.51,111.45,59.90217453]
[1644470398295,1.27343592,111.5,111.45,59.90217453]
[1644470398901,1.27343592,111.5,111.45,59.65217453]
[1644470399096,1.27343592,111.5,111.45,59.90217453]
[1644470401298,26.10941145,111.51,111.45,59.90217453]
[1644470403205,1.27343592,111.5,111.45,59.90217453]
[1644470408210,1.27343592,111.5,111.45,13.7085]
[1644470408520,1.27343592,111.5,111.45,13.4585]
[1644470410313,20.64975052,111.49,111.45,13.4585]
[1644470410613,20.64975052,111.49,111.44,13.4611]
[1644470410815,1.27343592,111.48,111.44,13.4611]
[1644470412913,24.3025,111.49,111.44,15.52010073]
[1644470413113,24.3025,111.49,111.45,6.0]
[1644470413314,24.3025,111.49,111.46,51.48251423]
[1644470413717,24.3025,111.49,111.46,51.73251423]
[1644470413916,1.30941145,111.51,111.46,51.73251423]
[1644470414117,24.38541145,111.51,111.46,51.73251423]
[1644470414616,24.38541145,111.51,111.46,51.48251423]
[1644470415019,24.38541145,111.51,111.46,13.4577]
[1644470415416,1.27343592,111.5,111.46,13.4577]
[1644470417523,1.27343592,111.49,111.45,13.4602]
[1644470418622,26.40746074,111.49,111.45,13.4602]
[1644470419422,26.40746074,111.49,111.44,13.4614]
[1644470419623,50.68006074,111.49,111.44,13.4614]
[1644470419823,1.27343592,111.48,111.44,13.4614]
[1644470425948,1.27343592,111.48,111.43,36.8358]
[1644470426150,14.73653592,111.48,111.43,36.8358]
[1644470426548,14.73653592,111.48,111.43,23.3733]
[1644470428447,14.73653592,111.48,111.42,13.4634]
[1644470429448,23.3677,111.47,111.42,13.4634]
[1644470430049,14.73653592,111.48,111.42,13.4634]
[1644470431150,23.794,111.47,111.42,13.4634]
[1644470435554,1.27343592,111.48,111.42,15.52240073]
[1644470435754,1.27343592,111.48,111.43,6.0]
[1644470435958,1.27343592,111.49,111.44,13.4591]
[1644470436455,1.30941145,111.5,111.45,45.98487221]
[1644470436659,1.27343592,111.5,111.45,45.98487221]
[1644470437055,1.27343592,111.5,111.46,13.459]
[1644470438660,23.83851145,111.51,111.46,13.709]
[1644470438855,23.80253592,111.51,111.46,13.709]
[1644470439055,1.27343592,111.51,111.46,13.709]
[1644470439254,24.1252,111.52,111.48,13.4557]
[1644470439255,25.43461145,111.52,111.48,13.4557]
[1644470439455,25.39863592,111.52,111.48,13.4557]
[1644470441560,1.27343592,111.52,111.49,43.14052153]
[1644470441858,1.27343592,111.52,111.49,56.59602153]
[1644470442261,25.24453592,111.53,111.49,56.59602153]
[1644470442458,23.9711,111.53,111.49,56.59602153]
[1644470442658,25.24453592,111.53,111.49,56.59602153]
[1644470443061,25.24453592,111.53,111.49,13.4555]
[1644470445763,23.9711,111.53,111.49,13.7055]
[1644470446263,23.9711,111.53,111.49,13.4555]
[1644470446466,69.15451188,111.53,111.49,13.4555]
[1644470446663,69.15451188,111.53,111.47,41.84776851]
[1644470446864,70.4279478,111.53,111.48,19.4568]
[1644470447064,70.46392333,111.53,111.48,19.4568]
[1644470447264,70.4279478,111.53,111.48,19.4568]
[1644470447867,25.24453592,111.53,111.48,19.4568]
[1644470448466,23.9711,111.53,111.48,19.4568]
[1644470449266,25.24453592,111.53,111.48,19.4568]
[1644470449666,23.9711,111.53,111.48,19.4568]
[1644470450070,23.9711,111.53,111.48,13.4568]
[1644470451066,25.24453592,111.53,111.48,13.4568]
[1644470451471,23.9711,111.53,111.48,13.4568]
[1644470451967,25.24453592,111.53,111.48,13.4568]
[1644470452367,23.9711,111.53,111.48,13.4568]
[1644470453068,25.24453592,111.53,111.48,13.4568]
[1644470458173,38.70183592,111.53,111.48,13.4568]
[1644470458673,1.27343592,111.52,111.48,13.4568]
[1644470459074,38.73781145,111.53,111.48,13.4568]
[1644470459276,1.27343592,111.52,111.48,13.4568]
[1644470459873,38.73781145,111.53,111.48,13.4568]
[1644470460074,38.70183592,111.53,111.48,13.4568]
[1644470460474,1.27343592,111.52,111.48,13.4568]
[1644470460874,38.73781145,111.53,111.48,13.4568]
[1644470461075,38.70183592,111.53,111.48,13.4568]
[1644470461373,1.27343592,111.52,111.48,13.4568]
[1644470463076,14.73183592,111.52,111.47,13.458]
[1644470463277,1.27343592,111.51,111.47,13.458]
[1644470468982,0.03597553,111.53,111.49,13.4535]
[1644470469183,1.31297075,111.55,111.5,18.46]
[1644470469381,1.31297075,111.56,111.5,20.26905069]
[1644470469582,1.31297075,111.56,111.51,1.80905069]
[1644470469785,1.27699522,111.56,111.52,6.0]
[1644470469985,1.27699522,111.56,111.53,13.4488]
[1644470470183,1.27699522,111.56,111.53,13.6988]
[1644470470583,493.09905057,111.57,111.53,13.6988]
[1644470470782,1.27699522,111.57,111.53,13.6988]
[1644470471484,1.27699522,111.58,111.53,13.6988]
[1644470471682,1.27699522,111.58,111.55,13.4476]
[1644470473486,1.27699522,111.59,111.55,13.4476]
[1644470474385,24.33097075,111.6,111.55,13.4476]
[1644470474817,1.27699522,111.59,111.55,13.4476]
[1644470475615,24.33097075,111.6,111.55,13.4476]
[1644470476014,24.33097075,111.6,111.55,57.24011326]
[1644470476514,24.33097075,111.6,111.55,13.4476]
[1644470480717,23.05397553,111.6,111.55,13.4476]
[1644470481221,24.33097075,111.6,111.55,13.4476]
[1644470481419,23.05397553,111.6,111.55,13.4476]
[1644470481720,0.03597553,111.6,111.55,13.4476]
[1644470481921,42.45354097,111.61,111.55,13.4476]
[1644470482420,42.45354097,111.61,111.55,13.6976]
[1644470482623,66.96704097,111.61,111.55,13.6976]
[1644470489426,1.27699522,111.6,111.55,13.6976]
[1644470489925,66.96704097,111.61,111.55,13.6976]
[1644470491333,25.82647075,111.61,111.55,13.6976]
[1644470491528,25.82647075,111.61,111.56,1.80905069]
[1644470491729,24.5135,111.61,111.57,13.4448]
[1644470496534,25.79049522,111.61,111.57,13.4448]
[1644470496932,1.27699522,111.61,111.57,13.4448]
[1644470497131,13.48177553,111.63,111.58,12.46]
[1644470497132,0.03597553,111.63,111.58,12.46]
[1644470497333,0.03597553,111.65,111.59,13.4406]
[1644470497534,0.03597553,111.63,111.6,18.46]
[1644470497834,0.03597553,111.65,111.6,43.59615069]
[1644470498032,0.03597553,111.68,111.61,48.52791135]
[1644470498233,0.03597553,111.68,111.63,13.4354]
[1644470498434,0.03597553,111.68,111.63,25.8954]
[1644470498634,0.03597553,111.68,111.63,26.1454]
[1644470499039,0.03597553,111.7,111.63,26.1454]
[1644470499735,0.03597553,111.7,111.64,6.0]
[1644470499934,93.51428581,111.71,111.65,54.96614146]
[1644470500336,46.18857553,111.71,111.65,54.96614146]
[1644470500534,0.03597553,111.71,111.65,54.96614146]
[1644470500735,0.03597553,111.72,111.65,57.02519215]
[1644470501137,0.03597553,111.72,111.65,55.21614146]
[1644470501337,40.14532339,111.72,111.65,55.21614146]
[1644470502838,40.14532339,111.72,111.63,12.46]
[1644470503039,23.4988,111.71,111.61,14.26905069]
[1644470503237,0.03597553,111.7,111.59,37.3329]
[1644470503637,0.03597553,111.7,111.59,39.14195069]
[1644470503840,0.03597553,111.7,111.6,34.97717778]
[1644470504041,0.03597553,111.7,111.6,47.43717778]
[1644470504237,0.03597553,111.7,111.6,47.68717778]
[1644470504743,13.47607553,111.7,111.61,13.4411]
[1644470504940,0.03597553,111.69,111.61,19.4411]
[1644470505238,23.4349609,111.68,111.61,19.4411]
[1644470505740,23.4349609,111.68,111.61,13.4411]
[1644470506341,23.4349609,111.68,111.61,13.6911]
[1644470507642,23.4349609,111.68,111.61,13.4411]
[1644470507841,23.4349609,111.68,111.61,13.6911]
[1644470508042,23.4349609,111.68,111.61,13.4411]
[1644470508342,23.4349609,111.68,111.61,13.6911]
[1644470510450,23.4349609,111.68,111.57,44.8078]
[1644470510649,23.4349609,111.68,111.55,24.0749]
[1644470510650,46.27467553,111.67,111.55,24.0749]
[1644470510851,0.03597553,111.66,111.55,24.0749]
[1644470511450,0.03597553,111.66,111.56,38.23087115]
[1644470511854,0.03597553,111.66,111.56,40.03992184]
[1644470512851,13.47957553,111.66,111.57,13.4461]
[1644470513051,13.47957553,111.66,111.57,19.4461]
[1644470513253,24.9637,111.65,111.57,13.6961]
[1644470513453,40.0677328,111.64,111.57,13.6961]
[1644470513653,0.03597553,111.63,111.57,13.6961]
[1644470515556,0.03597553,111.64,111.57,13.6961]
[1644470515757,0.03597553,111.63,111.57,13.6961]
[1644470515981,0.03597553,111.64,111.57,13.6961]
[1644470517478,0.03597553,111.64,111.57,13.4461]
[1644470517681,0.03597553,111.64,111.56,13.4472]
[1644470517682,13.48187553,111.64,111.56,13.4472]
[1644470517884,0.03597553,111.63,111.56,13.4472]
[1644470518284,0.03597553,111.64,111.56,13.4472]
[1644470518884,28.1593023,111.63,111.47,76.1239]
[1644470519084,47.18807553,111.62,111.47,76.1239]
[1644470519284,19.49597553,111.61,111.46,12.46]
[1644470519485,21.74717783,111.61,111.46,12.46]
[1644470519687,28.77561787,111.6,111.47,35.72801646]
[1644470519887,0.03597553,111.59,111.47,35.72801646]
[1644470520084,9.61797553,111.59,111.47,35.72801646]
[1644470520284,9.61797553,111.59,111.48,6.0]
[1644470520487,16.61797553,111.59,111.48,6.0]
[1644470520688,13.4553,111.57,111.49,13.4553]
[1644470520888,34.76869089,111.56,111.49,13.7053]
[1644470522689,48.22419089,111.56,111.49,13.7053]
[1644470524294,57.48119089,111.56,111.49,0.25]
[1644470524691,57.48119089,111.56,111.46,6.0]
[1644470524896,57.48119089,111.56,111.45,60.0534]
[1644470525092,57.48119089,111.56,111.45,59.8034]
[1644470525292,57.48119089,111.56,111.46,42.71168122]
[1644470525491,64.48119089,111.56,111.46,42.71168122]
[1644470526493,64.48119089,111.56,111.46,42.96168122]
[1644470526691,64.48119089,111.56,111.46,56.42058122]
[1644470527397,7.0,111.55,111.46,13.7089]
[1644470527594,13.4588,111.54,111.46,13.7089]
[1644470528195,13.4588,111.54,111.46,13.4589]
[1644470529194,13.4588,111.54,111.45,13.4601]
[1644470529794,13.4588,111.54,111.43,23.2967]
[1644470529795,7.0,111.53,111.43,23.2967]
[1644470529998,13.4621,111.51,111.43,23.5467]
[1644470530596,28.77561787,111.5,111.43,23.5467]
[1644470530895,28.77561787,111.5,111.43,0.274]
[1644470531296,28.77561787,111.5,111.43,0.024]
[1644470531698,28.77561787,111.5,111.43,13.4854]
[1644470532097,28.77561787,111.5,111.43,13.7354]
[1644470532700,38.34261787,111.5,111.43,13.7354]
[1644470543332,38.34261787,111.5,111.45,13.4598]
[1644470543733,38.34261787,111.5,111.45,13.7098]
[1644470544732,9.567,111.5,111.45,13.7098]
[1644470545334,9.567,111.5,111.45,13.4598]
[1644470545937,9.567,111.5,111.46,37.94207643]
[1644470547534,9.567,111.5,111.45,13.4598]
[1644470548638,9.567,111.5,111.46,39.26799599]
[1644470548838,9.567,111.5,111.46,52.72709599]
[1644470550239,9.567,111.5,111.46,13.4591]
[1644470552739,75.65453851,111.52,111.46,13.4591]
[1644470556644,62.19473851,111.52,111.46,13.4591]
[1644470556845,7.0,111.54,111.46,13.7091]
[1644470557145,2.53984603,111.56,111.49,13.4549]
[1644470557354,54.3322,111.57,111.49,13.4549]
[1644470557545,47.3322,111.57,111.5,6.0]
[1644470557745,47.3322,111.57,111.5,47.23806612]
[1644470557746,83.5487858,111.57,111.5,47.23806612]
[1644470558146,83.5487858,111.57,111.52,13.4524]
[1644470558346,83.5487858,111.57,111.5,47.23806612]
[1644470559752,97.0020858,111.57,111.51,13.4533]
[1644470560548,97.0020858,111.57,111.51,13.7033]
[1644470566260,60.7855,111.57,111.51,13.7033]
[1644470566457,47.3322,111.57,111.51,13.7033]
[1644470566857,7.03597553,111.6,111.53,13.4498]
[1644470567256,42.48273828,111.6,111.54,44.91257018]
[1644470567662,55.93203828,111.6,111.52,50.8317]
[1644470567859,55.93203828,111.6,111.52,51.0817]
[1644470568681,55.93203828,111.6,111.54,13.4497]
[1644470569381,13.48527553,111.6,111.54,13.4497]
[1644470570381,45.24663699,111.59,111.54,13.4497]
[1644470571683,58.69703699,111.59,111.54,13.4497]
[1644470572082,58.69703699,111.59,111.53,13.4516]
[1644470573183,58.69703699,111.59,111.53,13.7016]
[1644470573384,13.48527553,111.6,111.53,13.7016]
[1644470580287,0.03597553,111.6,111.55,13.4477]
[1644470580487,37.15587553,111.61,111.55,13.4477]
[1644470580996,79.4932175,111.61,111.55,13.4477]
[1644470581189,79.4932175,111.61,111.56,39.96017656]
[1644470581391,79.4932175,111.61,111.56,53.40807656]
[1644470581392,79.45724197,111.61,111.56,53.40807656]
[1644470581589,37.1199,111.61,111.56,53.40807656]
[1644470584190,37.1199,111.61,111.56,13.4479]
[1644470590494,23.6722,111.61,111.56,13.4479]
[1644470590894,23.6722,111.61,111.56,13.6979]
[1644470592500,0.03597553,111.62,111.56,13.6979]
[1644470594699,24.42797553,111.62,111.56,13.4479]
[1644470595002,24.392,111.62,111.56,13.4479]
[1644470595198,24.42797553,111.62,111.56,13.4479]
[1644470596000,37.87407553,111.62,111.56,13.4479]
[1644470604809,37.87407553,111.62,111.56,13.6979]
[1644470612338,37.87407553,111.62,111.56,13.4479]
[1644470617253,1.27875211,111.6,111.56,13.4479]
[1644470617443,1.27875211,111.59,111.56,13.4479]
[1644470617646,1.27875211,111.61,111.56,13.6979]
[1644470617942,1.27875211,111.61,111.58,13.4428]
[1644470618143,1.31472764,111.62,111.58,13.4428]
[1644470618342,1.27875211,111.62,111.58,38.5085]
[1644470618941,1.27875211,111.62,111.58,38.2585]
[1644470619144,1.27875211,111.62,111.59,41.60236796]
[1644470619543,1.27875211,111.63,111.6,13.4431]
[1644470619843,7.34095208,111.62,111.6,13.4431]
[1644470620044,6.06219997,111.62,111.6,13.4431]
[1644470622045,1.27875211,111.63,111.6,13.4431]
[1644470622246,1.27875211,111.64,111.6,13.4431]
[1644470629360,1.27875211,111.63,111.6,13.4431]
[1644470631060,3.03,111.62,111.6,13.4431]
[1644470631862,3.03,111.62,111.59,13.4441]
[1644470632065,4.30875211,111.62,111.59,13.4441]
[1644470632762,3.03219997,111.61,111.59,13.4441]
[1644470633163,3.03,111.6,111.58,13.4448]
[1644470633966,3.03219997,111.59,111.58,13.4448]
[1644470640372,3.03,111.6,111.58,13.4448]
[1644470640576,45.79705835,111.62,111.58,13.4448]
[1644470642778,45.79705835,111.62,111.57,13.4461]
[1644470642980,1.27875211,111.6,111.55,22.5621]
[1644470643181,1.27875211,111.6,111.56,6.0]
[1644470643599,1.27875211,111.6,111.55,6.0]
[1644470643799,1.27875211,111.6,111.55,37.71820379]
[1644470644201,1.27875211,111.6,111.56,13.4474]
[1644470644401,1.27875211,111.61,111.56,13.4474]
[1644470645804,1.27875211,111.6,111.56,13.4474]
[1644470646001,1.27875211,111.6,111.55,13.4483]
[1644470646201,25.04925211,111.6,111.55,13.4483]
[1644470652011,38.49825211,111.6,111.54,37.1231]
[1644470652212,38.49825211,111.6,111.51,0.024]
[1644470652414,50.95825211,111.6,111.51,0.024]
[1644470652613,1.27875211,111.58,111.51,0.024]
[1644470653017,40.60387297,111.58,111.51,39.49993368]
[1644470653619,24.546,111.57,111.51,39.49993368]
[1644470653817,37.9986,111.57,111.51,52.95303368]
[1644470657519,24.546,111.57,111.51,52.95303368]
[1644470661131,24.546,111.57,111.51,53.20303368]
[1644470663227,13.31327443,111.57,111.51,53.20303368]
[1644470666631,14.72915211,111.59,111.51,53.20303368]
[1644470666842,1.27875211,111.6,111.52,1.80447362]
[1644470667032,31.8039,111.61,111.54,13.4464]
[1644470667033,33.08265211,111.61,111.54,13.4464]
[1644470667232,26.08265211,111.61,111.55,6.0]
[1644470667632,26.08265211,111.61,111.56,47.23621235]
[1644470668033,26.08265211,111.61,111.56,0.25]
[1644470668834,26.08265211,111.61,111.56,13.6957]
[1644470670238,24.8039,111.61,111.56,13.6957]
[1644470673041,1.27875211,111.62,111.56,13.6957]
[1644470673241,26.17415211,111.62,111.56,36.806]
[1644470679676,1.27875211,111.62,111.57,6.0]
[1644470680080,1.31519144,111.63,111.58,13.4426]
[1644470680282,1.31519144,111.64,111.58,37.4657]
[1644470680475,0.03643933,111.63,111.58,37.4657]
[1644470680676,1.27875211,111.63,111.58,37.4657]
[1644470680876,1.31519144,111.63,111.58,80.07628417]
[1644470681878,0.03643933,111.63,111.58,80.07628417]
[1644470682079,1.27875211,111.64,111.58,80.07628417]
[1644470682279,1.31519144,111.64,111.58,80.07628417]
[1644470686082,14.75909144,111.64,111.58,80.07628417]
[1644470686885,1.27875211,111.63,111.58,80.07628417]
[1644470687084,1.31519144,111.63,111.58,80.07628417]
[1644470688286,25.83899144,111.63,111.58,80.07628417]
[1644470689688,25.83899144,111.63,111.58,79.82628417]
[1644470691392,25.83899144,111.63,111.58,80.07628417]
[1644470691595,25.83899144,111.63,111.58,79.82628417]
[1644470693695,1.27875211,111.62,111.58,37.2157]
[1644470694695,21.89784768,111.61,111.58,37.2157]
[1644470694895,21.89784768,111.61,111.58,13.4426]
[1644470695297,3.03219997,111.6,111.58,13.4426]
[1644470695497,1.27875211,111.62,111.58,13.4426]
[1644470696098,1.27875211,111.61,111.58,13.4426]
[1644470697098,6.06219997,111.6,111.58,13.4426]
[1644470700001,6.06219997,111.6,111.52,12.46]
[1644470700204,31.54965208,111.6,111.53,24.4216]
[1644470700402,1.27875211,111.59,111.53,24.4216]
[1644470701001,1.27875211,111.59,111.54,34.71332891]
[1644470701201,14.72895211,111.59,111.54,34.71332891]
[1644470701702,14.72895211,111.59,111.54,34.96332891]
[1644470704308,1.27875211,111.59,111.54,48.41262891]
[1644470708915,38.93645211,111.6,111.54,48.41262891]
[1644470715642,38.93645211,111.6,111.54,13.6993]
[1644470716042,1.27875211,111.59,111.54,13.6993]
[1644470716442,38.93645211,111.6,111.54,13.6993]
[1644470716642,38.93645211,111.6,111.54,60.77617826]
[1644470717045,1.27875211,111.59,111.54,60.77617826]
[1644470717844,1.27875211,111.59,111.54,13.6993]
[1644470720348,26.15179807,111.58,111.54,13.6993]
[1644470721250,1.27875211,111.59,111.54,13.6993]
[1644470722151,35.71397801,111.59,111.54,13.6993]
[1644470724653,35.71397801,111.59,111.54,13.7233]
[1644470726761,1.27875211,111.59,111.54,13.7233]
[1644470729161,1.27875211,111.59,111.54,15.52777362]
[1644470729364,25.48745211,111.6,111.56,13.4446]
[1644470729560,1.31519144,111.61,111.56,13.4446]
[1644470729780,26.19815211,111.61,111.56,13.6946]
[1644470731285,1.27875211,111.61,111.56,13.6946]
[1644470731483,1.27875211,111.61,111.57,44.3770713]
[1644470731686,1.27875211,111.61,111.58,13.445]
[1644470732086,1.27875211,111.61,111.58,13.695]
[1644470732284,6.06219997,111.6,111.58,13.695]
[1644470735086,24.40989144,111.62,111.58,13.695]
[1644470735286,24.40989144,111.62,111.58,13.445]
[1644470748904,21.40989144,111.62,111.58,13.445]
[1644470751005,21.40989144,111.62,111.58,13.695]
[1644470780962,21.40989144,111.62,111.58,13.445]
[1644470787270,34.85579144,111.62,111.58,13.445]
[1644470788867,21.40989144,111.62,111.58,13.445]
[1644470792573,0.03671651,111.63,111.58,13.445]
[1644470792772,7.0,111.66,111.59,12.46]
[1644470792969,7.0,111.66,111.61,13.4396]
[1644470793168,2.53984603,111.68,111.62,6.0]
[1644470793369,2.53984603,111.71,111.62,6.0]
[1644470793568,30.7001582,111.72,111.63,41.30584238]
[1644470793770,26.86904603,111.72,111.64,6.0]
[1644470794068,472.04935069,111.73,111.64,20.27534599]
[1644470794270,472.04935069,111.73,111.65,1.81534599]
[1644470794469,2.53984603,111.76,111.65,14.27534599]
[1644470794669,35.61749683,111.75,111.66,50.22600483]
[1644470794872,35.61749683,111.75,111.66,52.04135082]
[1644470795068,2.53984603,111.76,111.67,1.81534599]
[1644470795268,2.53984603,111.76,111.68,6.0]
[1644470795673,74.68084603,111.77,111.7,13.431]
[1644470795972,2.53984603,111.79,111.7,13.431]
[1644470796169,41.99054312,111.78,111.71,38.95513818]
[1644470796569,41.99054312,111.78,111.71,39.20513818]
[1644470797775,41.99054312,111.78,111.71,52.63343818]
[1644470799676,55.41964312,111.78,111.71,52.63343818]
[1644470803179,55.41964312,111.78,111.71,13.6783]
[1644470803678,55.41964312,111.78,111.71,0.25]
[1644470804279,55.41964312,111.78,111.7,13.6799]
[1644470805105,55.41964312,111.78,111.7,57.46656491]
[1644470805302,55.41964312,111.78,111.7,13.6799]
[1644470806807,55.41964312,111.78,111.69,13.4311]
[1644470807006,55.41964312,111.78,111.65,44.774]
[1644470807207,13.4348,111.74,111.66,6.0]
[1644470807611,28.66390981,111.73,111.63,12.46]
[1644470807807,41.12390981,111.73,111.62,13.4381]
[1644470808014,23.38059484,111.72,111.59,23.3876]
[1644470808207,12.46,111.71,111.57,12.46]
[1644470808407,20.47639484,111.7,111.57,12.46]
[1644470808609,0.03699484,111.69,111.57,12.46]
[1644470808807,39.09625247,111.69,111.58,38.57895963]
[1644470809708,13.442,111.67,111.58,52.02125963]
[1644470809907,31.5951953,111.66,111.58,52.02125963]
[1644470810508,31.5951953,111.66,111.58,52.27125963]
[1644470810709,0.03699484,111.66,111.59,6.0]
[1644470810908,30.4057,111.69,111.59,18.46]
[1644470810909,0.03699484,111.68,111.59,18.46]
[1644470811110,0.03699484,111.66,111.61,13.4384]
[1644470811310,0.03699484,111.67,111.61,13.6884]
[1644470811510,0.03699484,111.68,111.61,13.6884]
[1644470811711,0.03699484,111.67,111.62,39.79990929]
[1644470811912,35.42723907,111.68,111.62,39.79990929]
[1644470812113,35.42723907,111.68,111.62,40.04990929]
[1644470812312,0.03699484,111.68,111.62,40.04990929]
[1644470812512,0.03699484,111.68,111.62,53.48860929]
[1644470812717,0.03699484,111.7,111.62,53.48860929]
[1644470812916,0.03699484,111.68,111.62,53.48860929]
[1644470813214,0.03699484,111.7,111.62,53.48860929]
[1644470814913,0.03699484,111.7,111.64,46.37498424]
[1644470815113,74.36073757,111.71,111.64,46.37498424]
[1644470815315,74.36073757,111.71,111.64,46.62498424]
[1644470816817,36.33843757,111.71,111.64,60.06168424]
[1644470817017,0.03699484,111.71,111.65,6.0]
[1644470817219,24.18219484,111.72,111.65,6.25]
[1644470818019,64.58100887,111.72,111.66,39.24478945]
[1644470818219,64.58100887,111.72,111.66,52.92878945]
[1644470819723,64.58100887,111.72,111.66,13.684]
[1644470820224,64.58100887,111.72,111.66,0.25]
[1644470820723,64.58100887,111.72,111.65,13.6857]
[1644470821723,78.01650887,111.72,111.65,13.6857]
[1644470823552,78.01650887,111.72,111.64,19.4369]
[1644470823727,78.01650887,111.72,111.6,47.79369951]
[1644470823728,80.26771117,111.72,111.6,47.79369951]
[1644470824128,87.26771117,111.72,111.6,47.79369951]
[1644470824329,89.8075572,111.72,111.6,47.79369951]
[1644470824529,114.0454572,111.72,111.6,47.79369951]
[1644470824732,7.0,111.71,111.61,13.4406]
[1644470824929,13.4408,111.68,111.62,44.5886618]
[1644470825130,53.87660887,111.68,111.62,44.5886618]
[1644470827833,53.87660887,111.68,111.62,44.8386618]
[1644470828730,53.87660887,111.68,111.62,44.5886618]
[1644470829931,53.87660887,111.68,111.61,13.4406]
[1644470830131,53.87660887,111.68,111.61,13.6906]
[1644470830532,60.87660887,111.68,111.61,13.6906]
[1644470832434,60.87660887,111.68,111.61,0.25]
[1644470832834,60.87660887,111.68,111.6,13.692]
[1644470833034,13.4423,111.66,111.6,13.692]
[1644470833234,30.21864406,111.65,111.6,13.692]
[1644470833437,30.21864406,111.65,111.59,13.4433]
[1644470833935,30.21864406,111.65,111.58,12.46]
[1644470834335,30.21864406,111.65,111.58,58.94104383]
[1644470834735,43.66194406,111.65,111.58,72.38534383]
[1644470835136,43.66194406,111.65,111.58,72.63534383]
[1644470835635,43.66194406,111.65,111.58,13.6943]
[1644470835838,43.66194406,111.65,111.55,0.024]
[1644470836039,45.91314636,111.65,111.55,0.024]
[1644470836235,23.7919,111.64,111.55,0.024]
[1644470836437,13.4484,111.62,111.55,0.024]
[1644470836637,30.21864406,111.61,111.55,0.024]
[1644470837038,30.21864406,111.61,111.55,13.4721]
[1644470838342,43.66704406,111.61,111.55,0.024]
[1644470838763,43.66704406,111.61,111.53,0.024]
[1644470839365,43.66704406,111.61,111.53,35.42639758]
[1644470839563,43.66704406,111.61,111.54,0.024]
[1644470840965,13.4484,111.61,111.54,0.024]
[1644470841177,13.4484,111.61,111.54,1.83934599]
[1644470841367,13.4484,111.61,111.54,7.83934599]
[1644470841769,13.4484,111.61,111.54,0.024]
[1644470841967,46.00285885,111.6,111.54,0.024]
[1644470843072,59.45265885,111.6,111.54,0.024]
[1644470843872,13.4498,111.6,111.54,0.024]
[1644470844072,24.3737,111.62,111.54,15.28814599]
[1644470844271,24.3737,111.62,111.54,15.53814599]
[1644470844973,36.42073926,111.61,111.54,2.08934599]
[1644470845774,36.42073926,111.61,111.55,44.96706599]
[1644470846176,36.42073926,111.61,111.55,45.21706599]
[1644470846675,13.4501,111.6,111.55,45.21706599]
[1644470847075,13.4501,111.6,111.55,0.25]